fUSD/lending_fUSD_20251017
["ID","MTS","AMOUNT","RATE_DAILY","PERIOD"]
[391575808,1760670649056,-175.68696,0.00027397,7]
[391575809,1760670649067,-175.68696,0.00027397,7]
[391575810,1760670649078,-500.0,0.00027397,2]
[391575811,1760670649088,-150.0,0.00027397,2]
[391575812,1760670649098,-175.68696,0.00027397,7]
[391575813,1760670649108,-500.0,0.00027397,60]
[391575814,1760670649118,-150.0,0.00027397,2]
[391575815,1760670649128,-500.0,0.00027397,60]
[391575816,1760670649138,-496.543388,0.00027397,7]
[391575817,1760670649148,-150.0,0.00027397,60]
[391575818,1760670649157,-496.543388,0.00027397,7]
[391575819,1760670649167,-496.543388,0.00027397,7]
[391575820,1760670649177,-496.543388,0.00027397,7]
[391575821,1760670649187,-151.0,0.00027397,7]
[391575822,1760670649198,-151.0,0.00027397,7]
[391575823,1760670649208,-151.0,0.00027397,7]
[391575824,1760670649218,-151.0,0.00027397,7]
[391575825,1760670649228,-151.0,0.00027397,7]
[391575826,1760670649238,-151.0,0.00027397,7]
[391575827,1760670649249,-151.0,0.00027397,7]
[391575828,1760670649263,-151.0,0.00027397,7]
[391575829,1760670649273,-151.0,0.00027397,7]
[391575830,1760670649284,-151.0,0.00027397,7]
[391575831,1760670649295,-182.006528,0.00027397,7]
[391575832,1760670649306,-151.0,0.00027397,7]
[391575833,1760670649316,-151.0,0.00027397,7]
[391575834,1760670649326,-173.315802,0.00027397,7]
[391575835,1760670649339,-173.315802,0.00027397,7]
[391575836,1760670649349,-173.315802,0.00027397,7]
[391575837,1760670649360,-173.315802,0.00027397,7]
[391575838,1760670649370,-337.181607,0.00027397,7]
[391575839,1760670649380,-337.181607,0.00027397,7]
[391575840,1760670649390,-337.181607,0.00027397,7]
[391575841,1760670649400,-337.181607,0.00027397,7]
[391575842,1760670649410,-153.708787,0.00027397,7]
[391575843,1760670649420,-151.0,0.00027397,7]
[391575844,1760670649430,-151.0,0.00027397,7]
[391575845,1760670649440,-151.0,0.00027397,7]
[391575846,1760670649450,-167.92,0.00027397,7]
[391575847,1760670649460,-150.0,0.00027397,60]
[391575848,1760670649470,-500.0,0.00027397,60]
[391575849,1760670649480,-150.0,0.00027397,60]
[391575850,1760670649490,-150.0,0.00027397,60]
[391575851,1760670649500,-201.0,0.00027397,2]
[391575852,1760670649509,-6000.0,0.00027397,3]
[391575853,1760670649519,-216.06995339,0.00027397,7]
[391575854,1760670649529,-172.14165979,0.00027397,7]
[391575855,1760670649539,-230.96132266,0.00027397,7]
[391575856,1760670649549,-178.57677418,0.00027397,7]
[391575857,1760670649559,-197.04228947,0.00027397,7]
[391575858,1760670649570,-200.59171871,0.00027397,7]
[391575859,1760670649580,-263.87544006,0.00027397,7]
[391575860,1760670649590,-168.32065769,0.00027397,7]
[391575861,1760670649599,-262.47985613,0.00027397,7]
[391575862,1760670649609,-289.3783665,0.00027397,7]
[391575863,1760670649619,-158.22014003,0.00027397,7]
[391575864,1760670649628,-150.92933283,0.00027397,7]
[391575865,1760670649639,-240.4271147,0.00027397,7]
[391575866,1760670649648,-229.25316467,0.00027397,7]
[391575867,1760670649658,-172.1846833,0.00027397,7]
[391575868,1760670649667,-252.2175388,0.00027397,7]
[391575869,1760670649676,-210.64365555,0.00027397,7]
[391575870,1760670649686,-300.0,0.00027397,2]
[391575871,1760670649696,-33929.83,0.00027397,2]
[391575872,1760670649706,-1099.2,0.00027397,16]
[391575873,1760670649715,-765.73815856,0.00027397,2]
[391575874,1760670649726,-180.66,0.00027397,10]
[391575875,1760670649735,-160.0050115,0.00027397,2]
[391575876,1760670649746,-500.01049459,0.00027397,5]
[391575877,1760670649755,-10040.37416638,0.00027399,2]
[391575878,1760670649765,-33440.44,0.000274,2]
[391575879,1760670649775,-1011.0,0.000274,2]
[391575880,1760670649785,-1386.53,0.000274,2]
[391575881,1760670649795,-1386.53,0.000274,2]
[391575882,1760670649805,-1386.53,0.000274,2]
[391575883,1760670649814,-1386.53,0.000274,2]
[391575884,1760670649824,-1386.53,0.000274,2]
[391575885,1760670649834,-55555.0,0.00027407,3]
[391575886,1760670649844,-161.51383382,0.00027439,2]
[391575887,1760670649854,-500.0,0.00027452,60]
[391575888,1760670649864,-150.0,0.00027452,48]
[391575889,1760670649874,-150.0,0.00027452,60]
[391575890,1760670649884,-150.0,0.00027452,60]
[391575891,1760670649894,-150.0,0.00027452,60]
[391575892,1760670649904,-152.56612552,0.00027452,60]
[391575893,1760670649915,-150.0,0.00027452,60]
[391575894,1760670649924,-500.0,0.00027452,60]
[391575895,1760670649933,-645.95838079,0.00027452,60]
[391575896,1760670649943,-500.0,0.00027452,2]
[391575897,1760670649953,-500.0,0.00027452,60]
[391575898,1760670649962,-155.76918918,0.00027452,60]
[391575899,1760670649972,-1166.0,0.00027452,14]
[391575900,1760670649982,-150.0,0.00027452,2]
[391575901,1760670649991,-500.0,0.00027452,60]
[391575902,1760670650001,-500.0,0.00027452,60]
[391575903,1760670650011,-629.95766714,0.00027452,60]
[391575904,1760670650021,-548.86195821,0.00027452,60]
[391575905,1760670650030,-150.0,0.00027452,60]
[391575906,1760670650040,-150.0,0.00027452,60]
[391575907,1760670650050,-500.0,0.00027452,60]
[391575908,1760670650060,-150.0,0.00027452,60]
[391575909,1760670650070,-151.0,0.00027456,30]
[391575910,1760670650079,-151.0,0.00027456,30]
[391575911,1760670650089,-151.0,0.00027456,30]
[391575912,1760670650099,-151.0,0.00027456,30]
[391575913,1760670650109,-151.0,0.00027456,30]
[391575914,1760670650118,-151.0,0.00027456,30]
[391575915,1760670650128,-151.0,0.00027456,30]
[391575916,1760670650138,-151.0,0.00027456,30]
[391575917,1760670650148,-269.84,0.00027456,30]
[391575918,1760670650158,-151.0,0.00027456,30]
[391575919,1760670650168,-151.0,0.00027456,30]
[391575920,1760670650178,-269.84,0.00027456,30]
[391575921,1760670650187,-151.0,0.00027456,30]
[391575922,1760670650197,-151.0,0.00027456,30]
[391575923,1760670650207,-269.84,0.00027456,30]
[391575924,1760670650217,-151.0,0.00027456,30]
[391575925,1760670650226,-151.0,0.00027456,30]
[391575926,1760670650236,-269.84,0.00027456,30]
[391575927,1760670650247,-151.0,0.00027456,30]
[391575928,1760670650260,-152.209815,0.00027456,30]
[391575929,1760670650270,-152.495244,0.00027456,30]
[391575930,1760670650279,-151.0,0.00027456,30]
[391575931,1760670650289,-151.0,0.00027456,30]
[391575932,1760670650300,-151.0,0.00027456,30]
[391575933,1760670650310,-151.0,0.00027456,30]
[391575934,1760670650320,-151.0,0.00027456,30]
[391575935,1760670650330,-151.0,0.00027456,30]
[391575936,1760670650342,-151.0,0.00027456,30]
[391575937,1760670650353,-151.0,0.00027456,30]
[391575938,1760670650363,-166.324811,0.00027456,30]
[391575939,1760670650373,-151.0,0.00027456,30]
[391575940,1760670650382,-151.0,0.00027456,15]
[391575941,1760670650393,-151.0,0.00027456,30]
[391575942,1760670650402,-151.0,0.00027456,30]
[391575943,1760670650413,-155.338338,0.00027456,30]
[391575944,1760670650811,-151.0,0.00027456,30]
[391575945,1760670650823,-151.0,0.00027456,30]
[391575946,1760670650833,-151.0,0.00027456,30]
[391575947,1760670650842,-151.0,0.00027456,30]
[391575948,1760670650852,-151.0,0.00027456,30]
[391575949,1760670650861,-151.0,0.00027456,30]
[391575950,1760670650871,-151.0,0.00027456,30]
[391575951,1760670650880,-151.0,0.00027456,30]
[391575952,1760670650890,-151.0,0.00027456,30]
[391575953,1760670650900,-151.0,0.00027456,30]
[391575954,1760670650910,-151.0,0.00027456,30]
[391575955,1760670650919,-151.0,0.00027456,30]
[391575956,1760670650929,-151.0,0.00027456,30]
[391575957,1760670650939,-151.0,0.00027456,30]
[391575958,1760670650948,-151.0,0.00027456,30]
[391575959,1760670650958,-151.0,0.00027456,30]
[391575960,1760670650968,-151.0,0.00027456,30]
[391575961,1760670650978,-151.0,0.00027456,30]
[391575962,1760670650987,-151.0,0.00027456,30]
[391575963,1760670650997,-151.0,0.00027456,30]
[391575964,1760670651006,-345.868089,0.00027456,30]
[391575965,1760670651016,-151.0,0.00027456,30]
[391575966,1760670651025,-345.868089,0.00027456,30]
[391575967,1760670651034,-151.0,0.00027456,30]
[391575968,1760670651043,-151.0,0.00027456,30]
[391575969,1760670651053,-345.868089,0.00027456,30]
[391575970,1760670651063,-345.868089,0.00027456,30]
[391575971,1760670651072,-151.0,0.00027456,30]
[391575972,1760670651081,-151.0,0.00027456,30]
[391575973,1760670651091,-151.0,0.00027456,30]
[391575974,1760670651100,-151.0,0.00027456,30]
[391575975,1760670651110,-151.0,0.00027456,30]
[391575976,1760670651119,-151.0,0.00027456,30]
[391575977,1760670651129,-151.0,0.00027456,30]
[391575978,1760670651139,-151.0,0.00027456,30]
[391575979,1760670651149,-226.776325,0.00027456,30]
[391575980,1760670651159,-193.61526788,0.00027456,30]
[391575981,1760670651168,-151.0,0.00027456,30]
[391575982,1760670651178,-3170.315011,0.00027456,30]
[391575983,1760670651188,-151.0,0.00027456,30]
[391575984,1760670651197,-3170.315011,0.00027456,30]
[391575985,1760670651207,-151.0,0.00027456,30]
[391575986,1760670651216,-3170.315011,0.00027456,30]
[391575987,1760670651226,-151.0,0.00027456,30]
[391575988,1760670651236,-3170.315011,0.00027456,30]
[391575989,1760670651247,-151.0,0.00027456,30]
[391575990,1760670651259,-151.0,0.00027456,30]
[391575991,1760670651270,-151.0,0.00027456,30]
[391575992,1760670651280,-314.232976,0.00027456,30]
[391575993,1760670651289,-151.0,0.00027456,30]
[391575994,1760670651299,-314.232976,0.00027456,30]
[391575995,1760670651309,-314.232976,0.00027456,30]
[391575996,1760670651319,-314.232976,0.00027456,30]
[391575997,1760670651330,-260.36014,0.00027456,30]
[391575998,1760670651340,-151.0,0.00027456,30]
[391575999,1760670651350,-260.36014,0.00027456,30]
[391576000,1760670651359,-260.36014,0.00027456,30]
[391576001,1760670651370,-260.36014,0.00027456,30]
[391576002,1760670651380,-151.0,0.00027456,30]
[391576003,1760670651390,-151.0,0.00027456,30]
[391576004,1760670651400,-373.521676,0.00027456,30]
[391576005,1760670651410,-151.0,0.00027456,30]
[391576006,1760670651420,-373.521676,0.00027456,30]
[391576007,1760670651430,-151.0,0.00027456,30]
[391576008,1760670651440,-373.521676,0.00027456,30]
[391576009,1760670651450,-373.521676,0.00027456,30]
[391576010,1760670651460,-151.96914299,0.00027467,3]
[391576011,1760670651470,-150.0,0.00027473,5]
[391576012,1760670651480,-151.0,0.00027476,30]
[391576013,1760670651490,-151.0,0.00027476,30]
[391576014,1760670651500,-151.0,0.00027476,30]
[391576015,1760670651515,-151.0,0.00027476,30]
[391576016,1760670651525,-151.0,0.00027476,30]
[391576017,1760670651535,-151.0,0.00027476,30]
[391576018,1760670651544,-151.869206,0.00027476,30]
[391576019,1760670651554,-151.0,0.00027476,30]
[391576020,1760670651564,-151.0,0.00027476,30]
[391576021,1760670651573,-151.0,0.00027476,30]
[391576022,1760670651583,-154.006071,0.00027476,30]
[391576023,1760670651593,-151.0,0.00027476,30]
[391576024,1760670651602,-152.324243,0.00027476,30]
[391576025,1760670651612,-180.907993,0.00027476,30]
[391576026,1760670651621,-180.907993,0.00027476,30]
[391576027,1760670651631,-151.0,0.00027476,30]
[391576028,1760670651640,-180.907993,0.00027476,30]
[391576029,1760670651650,-180.907993,0.00027476,30]
[391576030,1760670651660,-152.589747,0.00027476,30]
[391576031,1760670651670,-154.210364,0.00027476,30]
[391576032,1760670651680,-151.0,0.00027476,30]
[391576033,1760670651689,-151.0,0.00027476,30]
[391576034,1760670651699,-151.0,0.00027476,30]
[391576035,1760670651708,-151.0,0.00027476,30]
[391576036,1760670651718,-151.0,0.00027476,30]
[391576037,1760670651728,-151.0,0.00027476,30]
[391576038,1760670651738,-151.0,0.00027476,30]
[391576039,1760670651747,-151.0,0.00027476,30]
[391576040,1760670651758,-235.671819,0.00027476,30]
[391576041,1760670651768,-151.0,0.00027476,30]
[391576042,1760670651778,-151.0,0.00027476,30]
[391576043,1760670651787,-235.671819,0.00027476,30]
[391576044,1760670651797,-151.0,0.00027476,30]
[391576045,1760670651808,-235.671819,0.00027476,30]
[391576046,1760670651817,-151.0,0.00027476,30]
[391576047,1760670651827,-151.0,0.00027476,30]
[391576048,1760670651837,-235.671819,0.00027476,30]
[391576049,1760670651847,-151.0,0.00027476,30]
[391576050,1760670651857,-152.007249,0.00027476,30]
[391576051,1760670651867,-152.439349,0.00027476,30]
[391576052,1760670651877,-151.0,0.00027476,30]
[391576053,1760670651886,-151.0,0.00027476,30]
[391576054,1760670651896,-151.0,0.00027476,30]
[391576055,1760670651906,-151.0,0.00027476,30]
[391576056,1760670651915,-151.0,0.00027476,30]
[391576057,1760670651925,-151.0,0.00027476,30]
[391576058,1760670651935,-153.928152,0.00027476,30]
[391576059,1760670651946,-153.2720412,0.00027476,30]
[391576060,1760670651956,-151.0,0.00027476,30]
[391576061,1760670651966,-151.0,0.00027476,30]
[391576062,1760670651976,-167.330538,0.00027476,30]
[391576063,1760670651985,-167.330538,0.00027476,30]
[391576064,1760670651995,-167.330538,0.00027476,30]
[391576065,1760670652005,-167.330538,0.00027476,30]
[391576066,1760670652014,-151.0,0.00027476,30]
[391576067,1760670652023,-151.0,0.00027476,30]
[391576068,1760670652033,-151.0,0.00027476,30]
[391576069,1760670652042,-150.0,0.00027476,20]
[391576070,1760670652052,-267.0,0.00027484,2]
[391576071,1760670652062,-197.74520496,0.000275,2]
[391576072,1760670652072,-540.18889414,0.000275,2]
[391576073,1760670652081,-500.0,0.00027507,60]
[391576074,1760670652091,-150.0,0.00027507,48]
[391576075,1760670652101,-150.0,0.00027507,60]
[391576076,1760670652111,-261.51195801,0.00027507,60]
[391576077,1760670652121,-200.0,0.00027507,60]
[391576078,1760670652131,-202.69547067,0.00027507,60]
[391576079,1760670652141,-353.74813304,0.00027507,60]
[391576080,1760670652150,-500.0,0.00027507,2]
[391576081,1760670652160,-500.0,0.00027507,60]
[391576082,1760670652171,-1166.0,0.00027507,14]
[391576083,1760670652180,-150.0,0.00027507,2]
[391576084,1760670652191,-500.0,0.00027507,60]
[391576085,1760670652200,-500.0,0.00027507,60]
[391576086,1760670652210,-150.0,0.00027507,60]
[391576087,1760670652220,-150.0,0.00027507,60]
[391576088,1760670652229,-203.52800363,0.00027507,60]
[391576089,1760670652239,-150.0,0.00027507,60]
[391576090,1760670652249,-1037.0,0.00027515,2]
[391576091,1760670652261,-2000.0,0.0002754,120]
[391576092,1760670652272,-1908.84249695,0.00027555,2]
[391576093,1760670652281,-500.0,0.00027561,60]
[391576094,1760670652291,-150.0,0.00027561,48]
[391576095,1760670652302,-150.0,0.00027561,60]
[391576096,1760670652312,-500.0,0.00027561,2]
[391576097,1760670652322,-500.0,0.00027561,60]
[391576098,1760670652334,-1166.0,0.00027561,14]
[391576099,1760670652344,-185.41247812,0.00027561,2]
[391576100,1760670652355,-500.0,0.00027561,60]
[391576101,1760670652364,-326.20764336,0.00027561,60]
[391576102,1760670652374,-150.0,0.00027561,60]
[391576103,1760670652384,-216.89683447,0.00027561,60]
[391576104,1760670652393,-150.0,0.00027616,48]
[391576105,1760670652403,-150.0,0.00027616,60]
[391576106,1760670652413,-500.0,0.00027616,2]
[391576107,1760670652423,-500.0,0.00027616,60]
[391576108,1760670652433,-1166.0,0.00027616,14]
[391576109,1760670652444,-546.87857832,0.00027616,60]
[391576110,1760670652454,-150.0,0.00027616,60]
[391576111,1760670652465,-267.0,0.00027628,2]
[391576112,1760670652475,-381.0,0.00027652,2]
[391576113,1760670652484,-1000.0,0.00027666,7]
[391576114,1760670652495,-500.0,0.00027667,5]
[391576115,1760670652504,-151.33400897,0.00027671,48]
[391576116,1760670652515,-203.58785703,0.00027671,60]
[391576117,1760670652525,-500.0,0.00027671,2]
[391576118,1760670652535,-500.0,0.00027671,60]
[391576119,1760670652544,-1166.0,0.00027671,14]
[391576120,1760670652554,-166.53177944,0.00027671,60]
[391576121,1760670652564,-500.0,0.00027671,30]
[391576122,1760670652574,-500.0,0.00027671,30]
[391576123,1760670652584,-500.0,0.00027671,30]
[391576124,1760670652593,-500.0,0.00027671,30]
[391576125,1760670652602,-590.83291805,0.00027671,30]
[391576126,1760670652612,-365.72,0.00027671,7]
[391576127,1760670652622,-500.0,0.00027674,120]
[391576128,1760670652631,-174.0,0.00027674,120]
[391576129,1760670652641,-1000.0,0.000277,2]
[391576130,1760670652651,-1043.37073163,0.00027709,7]
[391576131,1760670652661,-10115.48762669,0.00027714,2]
[391576132,1760670652671,-1531.0,0.00027717,2]
[391576133,1760670652680,-500.0,0.00027726,2]
[391576134,1760670652690,-500.0,0.00027726,60]
[391576135,1760670652700,-1166.0,0.00027726,14]
[391576136,1760670652710,-500.0,0.00027781,2]
[391576137,1760670652721,-500.0,0.00027781,60]
[391576138,1760670652731,-1166.0,0.00027781,14]
[391576139,1760670652741,-168.0,0.00027791,2]
[391576140,1760670652751,-3950.21305,0.000278,2]
[391576141,1760670652761,-1037.0,0.00027813,2]
[391576142,1760670652772,-1000.0,0.00027813,30]
[391576143,1760670652782,-1000.0,0.00027813,30]
[391576144,1760670652792,-1000.0,0.00027813,30]
[391576145,1760670652802,-1005.46931787,0.00027813,30]
[391576146,1760670652812,-500.0,0.00027835,2]
[391576147,1760670652823,-341.32254047,0.00027835,60]
[391576148,1760670652832,-1166.0,0.00027835,14]
[391576149,1760670652842,-1091.0,0.00027872,5]
[391576150,1760670652852,-168.0,0.00027877,2]
[391576151,1760670652861,-500.0,0.0002789,2]
[391576152,1760670652871,-1166.0,0.0002789,14]
[391576153,1760670652880,-1908.84249695,0.00027897,2]
[391576154,1760670652889,-462.66,0.00027903,2]
[391576155,1760670652899,-168.22,0.00027903,2]
[391576156,1760670652908,-168.22,0.00027903,2]
[391576157,1760670652918,-168.22,0.00027903,2]
[391576158,1760670652928,-152.0,0.00027912,5]
[391576159,1760670652938,-976.63290057,0.00027918,2]
[391576160,1760670652948,-150.0,0.00027925,2]
[391576161,1760670652958,-150.0,0.00027925,2]
[391576162,1760670652968,-150.0,0.00027925,2]
[391576163,1760670652977,-150.51,0.00027925,2]
[391576164,1760670652987,-150.0,0.00027925,2]
[391576165,1760670652997,-500.0,0.00027941,5]
[391576166,1760670653007,-516.03617143,0.00027945,2]
[391576167,1760670653016,-1166.0,0.00027945,14]
[391576168,1760670653026,-365.72,0.00027945,8]
[391576169,1760670653036,-1494.44,0.00027971,2]
[391576170,1760670653045,-1199.28,0.00027971,2]
[391576171,1760670653055,-1166.0,0.00028,14]
[391576172,1760670653065,-523.0,0.00028,2]
[391576173,1760670653075,-70128.9474664,0.00028,2]
[391576174,1760670653084,-524.0,0.00028,2]
[391576175,1760670653094,-1571.0,0.00028,2]
[391576176,1760670653103,-237.0,0.00028,120]
[391576177,1760670653113,-521.06496332,0.00028,2]
[391576178,1760670653123,-151.0,0.00028,30]
[391576179,1760670653133,-151.0,0.00028,30]
[391576180,1760670653143,-151.0,0.00028,30]
[391576181,1760670653152,-151.19012526,0.00028,30]
[391576182,1760670653162,-151.0,0.00028,30]
[391576183,1760670653175,-151.0,0.00028,30]
[391576184,1760670653185,-151.0,0.00028,30]
[391576185,1760670653195,-152.132561,0.00028,10]
[391576186,1760670653205,-299.61378136,0.00028,30]
[391576187,1760670653216,-1000.0,0.00028,2]
[391576188,1760670653226,-163.85,0.00028,7]
[391576189,1760670653236,-163.86,0.00028,7]
[391576190,1760670653245,-491.56,0.00028,7]
[391576191,1760670653255,-510.93763179,0.00028001,2]
[391576192,1760670653269,-250.0,0.00028021,5]
[391576193,1760670653278,-267.0,0.0002803,7]
[391576194,1760670653288,-500.0,0.00028045,120]
[391576195,1760670653298,-721.12765535,0.00028048,2]
[391576196,1760670653310,-1166.0,0.00028055,14]
[391576197,1760670653320,-23385.0,0.00028055,2]
[391576198,1760670653330,-152.59,0.0002806,15]
[391576199,1760670653342,-2914.23234853,0.00028082,9]
[391576200,1760670653351,-5828.46469707,0.00028082,9]
[391576201,1760670653361,-8742.69704561,0.00028082,9]
[391576202,1760670653371,-11656.92939415,0.00028082,9]
[391576203,1760670653381,-14571.16174269,0.00028082,9]
[391576204,1760670653390,-2820.22485342,0.00028082,9]
[391576205,1760670653400,-151.552995,0.0002809,30]
[391576206,1760670653409,-151.0,0.0002809,30]
[391576207,1760670653419,-151.8323,0.0002809,30]
[391576208,1760670653429,-151.554252,0.0002809,30]
[391576209,1760670653439,-151.0,0.0002809,30]
[391576210,1760670653450,-151.0,0.0002809,30]
[391576211,1760670653460,-151.0,0.0002809,30]
[391576212,1760670653470,-151.0,0.0002809,30]
[391576213,1760670653481,-151.0,0.0002809,30]
[391576214,1760670653490,-255.79045605,0.0002809,30]
[391576215,1760670653500,-152.362216,0.0002809,14]
[391576216,1760670653510,-151.0,0.0002809,30]
[391576217,1760670653521,-152.456632,0.0002809,30]
[391576218,1760670653531,-183.047386,0.0002809,30]
[391576219,1760670653542,-153.198193,0.0002809,30]
[391576220,1760670653552,-151.869967,0.0002809,30]
[391576221,1760670653563,-33440.44,0.000281,2]
[391576222,1760670653573,-2000.0,0.000281,2]
[391576223,1760670653583,-1166.0,0.00028109,14]
[391576224,1760670653594,-199.91122982,0.00028123,2]
[391576225,1760670653604,-1533.0,0.00028126,2]
[391576226,1760670653614,-1300.0,0.00028138,7]
[391576227,1760670653625,-10115.48762669,0.0002815,2]
[391576228,1760670653635,-152.59,0.0002816,15]
[391576229,1760670653646,-1166.0,0.00028164,14]
[391576230,1760670653656,-500.0,0.00028215,5]
[391576231,1760670653666,-1166.0,0.00028219,14]
[391576232,1760670653676,-365.72,0.00028219,9]
[391576233,1760670653686,-989.37618948,0.00028233,2]
[391576234,1760670653710,-150.0,0.00027561,60]
[391576235,1760670653720,-47.62381052,0.00028233,2]
[391576236,1760670653730,-151.0,0.00028235,7]
[391576237,1760670653740,-1908.84249695,0.00028238,2]
[391576238,1760670653751,-185.49487791,0.00028253,4]
[391576239,1760670653762,-152.59,0.0002826,15]
[391576240,1760670653772,-166.71,0.00028269,2]
[391576241,1760670653783,-1166.0,0.00028274,14]
[391576242,1760670653794,-3950.21305,0.000283,2]
[391576243,1760670653804,-1166.0,0.00028329,14]
[391576244,1760670653815,-152.59,0.0002836,15]
[391576245,1760670653825,-1166.0,0.00028383,14]
[391576246,1760670653835,-2000.0,0.00028408,120]
[391576247,1760670653845,-413.59,0.00028411,2]
[391576248,1760670653855,-3000.0,0.00028412,7]
[391576249,1760670653865,-267.0,0.00028421,2]
[391576250,1760670653875,-1166.0,0.00028438,14]
[391576251,1760670653886,-152.59,0.0002846,15]
[391576252,1760670653896,-1199.28,0.00028464,2]
[391576253,1760670653907,-1199.28,0.00028464,2]
[391576254,1760670653917,-1199.28,0.00028464,2]
[391576255,1760670653928,-2398.56,0.00028464,2]
[391576256,1760670653938,-1199.33,0.00028464,2]
[391576257,1760670653949,-973.85086319,0.0002848,7]
[391576258,1760670653960,-500.0,0.00028489,5]
[391576259,1760670653970,-1166.0,0.00028493,14]
[391576260,1760670653981,-365.72,0.00028493,10]
[391576261,1760670653991,-976.63290057,0.00028498,2]
[391576262,1760670654001,-1166.0,0.00028548,14]
[391576263,1760670654011,-152.59,0.0002856,15]
[391576264,1760670654021,-350.0,0.00028568,5]
[391576265,1760670654031,-238090.92801211,0.0002857,2]
[391576266,1760670654041,-194.904824,0.0002857,30]
[391576267,1760670654051,-151.0,0.0002857,30]
[391576268,1760670654061,-151.0,0.0002857,30]
[391576269,1760670654071,-284.421558,0.0002857,30]
[391576270,1760670654082,-151.0,0.0002857,30]
[391576271,1760670654092,-151.0,0.0002857,30]
[391576272,1760670654103,-151.0,0.0002857,30]
[391576273,1760670654114,-151.0,0.0002857,30]
[391576274,1760670654125,-151.0,0.0002857,30]
[391576275,1760670654136,-151.0,0.0002857,30]
[391576276,1760670654146,-151.0,0.0002857,30]
[391576277,1760670654156,-175.68696,0.0002857,30]
[391576278,1760670654166,-175.68696,0.0002857,30]
[391576279,1760670654178,-175.68696,0.0002857,30]
[391576280,1760670654188,-175.68696,0.0002857,30]
[391576281,1760670654199,-496.543388,0.0002857,30]
[391576282,1760670654210,-496.543388,0.0002857,30]
[391576283,1760670654221,-496.543388,0.0002857,30]
[391576284,1760670654232,-496.543388,0.0002857,30]
[391576285,1760670654243,-151.0,0.0002857,30]
[391576286,1760670654254,-151.0,0.0002857,30]
[391576287,1760670654269,-151.0,0.0002857,30]
[391576288,1760670654279,-151.0,0.0002857,30]
[391576289,1760670654290,-151.0,0.0002857,30]
[391576290,1760670654302,-151.0,0.0002857,30]
[391576291,1760670654313,-151.0,0.0002857,30]
[391576292,1760670654323,-151.0,0.0002857,30]
[391576293,1760670654335,-151.0,0.0002857,30]
[391576294,1760670654346,-151.0,0.0002857,30]
[391576295,1760670654357,-151.0,0.0002857,30]
[391576296,1760670654367,-151.0,0.0002857,30]
[391576297,1760670654379,-173.315802,0.0002857,30]
[391576298,1760670654390,-173.315802,0.0002857,30]
[391576299,1760670654401,-173.315802,0.0002857,30]
[391576300,1760670654411,-151.0,0.0002857,30]
[391576301,1760670654422,-173.315802,0.0002857,30]
[391576302,1760670654432,-151.0,0.0002857,30]
[391576303,1760670654444,-151.0,0.0002857,30]
[391576304,1760670654454,-902.990538,0.0002857,30]
[391576305,1760670654465,-902.990538,0.0002857,30]
[391576306,1760670654475,-330.111179,0.0002857,30]
[391576307,1760670654486,-151.0,0.0002857,30]